fUSD/lending_fUSD_20240420
["ID","MTS","AMOUNT","RATE_DAILY","PERIOD"]
[323055281,1713621116796,-500.0,0.00017534,2]
[323055282,1713621116807,-970.1,0.00017534,2]
[323055283,1713621116817,-500.0,0.00017534,2]
[323055284,1713621116828,-600.76,0.00017534,2]
[323055285,1713621116838,-585.1072968,0.00017534,2]
[323055286,1713621116848,-580.95,0.00017534,2]
[323055287,1713621116858,-775.5,0.00017534,2]
[323055288,1713621116869,-1195.92,0.00017534,2]
[323055289,1713621116880,-971.12,0.00017534,2]
[323055290,1713621116890,-558.98,0.00017534,2]
[323055291,1713621116900,-751.59,0.00017534,2]
[323055292,1713621116911,-500.0,0.00017534,2]
[323055293,1713621116921,-500.0,0.00017534,2]
[323055294,1713621116932,-1627.69,0.00017534,2]
[323055295,1713621116942,-1693.65,0.00017534,2]
[323055296,1713621116953,-712.6,0.00017534,2]
[323055297,1713621116963,-500.0,0.00017534,2]
[323055298,1713621116973,-500.0,0.00017534,2]
[323055299,1713621116984,-964.32,0.00017534,2]
[323055300,1713621116993,-504.29211263,0.00017534,2]
[323055301,1713621117006,-611.81,0.00017534,2]
[323055302,1713621117017,-1500.36,0.00017534,2]
[323055303,1713621117027,-630.97,0.00017534,2]
[323055304,1713621117038,-1123.09,0.00017534,2]
[323055305,1713621117049,-500.0,0.00017534,2]
[323055306,1713621117060,-500.0,0.00017534,2]
[323055307,1713621117070,-571.83,0.00017534,2]
[323055308,1713621117080,-1122.67,0.00017534,2]
[323055309,1713621117091,-959.94,0.00017534,2]
[323055310,1713621117102,-666.18,0.00017534,2]
[323055311,1713621117113,-717.02,0.00017534,2]
[323055312,1713621117124,-500.0,0.00017534,2]
[323055313,1713621117135,-656.38,0.00017534,2]
[323055314,1713621117145,-672.57,0.00017534,2]
[323055315,1713621117155,-500.0,0.00017534,2]
[323055316,1713621117166,-817.63,0.00017534,2]
[323055317,1713621117176,-748.28,0.00017534,2]
[323055318,1713621117187,-1401.32,0.00017534,2]
[323055319,1713621117197,-1699.19,0.00017534,2]
[323055320,1713621117208,-1021.58,0.00017534,2]
[323055321,1713621117219,-500.0,0.00017534,2]
[323055322,1713621117229,-2008.01,0.00017534,2]
[323055323,1713621117239,-502.08,0.00017534,2]
[323055324,1713621117250,-623.84,0.00017534,2]
[323055325,1713621117260,-556.29,0.00017534,2]
[323055326,1713621117270,-1672.8,0.00017534,2]
[323055327,1713621117280,-1383.08,0.00017534,2]
[323055328,1713621117295,-500.0,0.00017534,2]
[323055329,1713621117305,-905.55,0.00017534,2]
[323055330,1713621117315,-500.0,0.00017534,2]
[323055331,1713621117326,-500.0,0.00017534,2]
[323055332,1713621117337,-500.0,0.00017534,2]
[323055333,1713621117348,-500.0,0.00017534,2]
[323055334,1713621117359,-500.0,0.00017534,2]
[323055335,1713621117370,-1271.86,0.00017534,2]
[323055336,1713621117382,-531.26,0.00017534,2]
[323055337,1713621117392,-858.15,0.00017534,2]
[323055338,1713621117402,-500.0,0.00017534,2]
[323055339,1713621117413,-2051.78,0.00017534,2]
[323055340,1713621117423,-500.0,0.00017534,2]
[323055341,1713621117432,-2102.91,0.00017534,2]
[323055342,1713621117442,-495.25,0.00017534,2]
[323055343,1713621117452,-888.43,0.00017534,2]
[323055344,1713621117462,-500.0,0.00017534,2]
[323055345,1713621117472,-547.06,0.00017534,2]
[323055346,1713621117482,-500.0,0.00017534,2]
[323055347,1713621117493,-1220.03,0.00017534,2]
[323055348,1713621117503,-1132.15,0.00017534,2]
[323055349,1713621117513,-1428.28,0.00017534,2]
[323055350,1713621117524,-1590.37,0.00017534,2]
[323055351,1713621117535,-640.38,0.00017534,2]
[323055352,1713621117544,-621.99,0.00017534,2]
[323055353,1713621117556,-1083.02,0.00017534,2]
[323055354,1713621117566,-912.32,0.00017534,2]
[323055355,1713621117576,-1323.41,0.00017534,2]
[323055356,1713621117586,-500.0,0.00017534,2]
[323055357,1713621117596,-500.0,0.00017534,2]
[323055358,1713621117606,-590.76,0.00017534,2]
[323055359,1713621117616,-827.0,0.00017534,2]
[323055360,1713621117626,-720.61,0.00017534,2]
[323055361,1713621117636,-1207.81,0.00017534,2]
[323055362,1713621117647,-500.0,0.00017534,2]
[323055363,1713621117657,-972.02,0.00017534,2]
[323055364,1713621117669,-1649.09,0.00017534,2]
[323055365,1713621117680,-3308.96,0.00017534,2]
[323055366,1713621117690,-1214.04,0.00017534,2]
[323055367,1713621117700,-500.0,0.00017534,2]
[323055368,1713621117711,-500.0,0.00017534,2]
[323055369,1713621117722,-500.0,0.00017534,2]
[323055370,1713621117733,-803.54,0.00017534,2]
[323055371,1713621117744,-1303.19,0.00017534,2]
[323055372,1713621117755,-3936.85,0.00017534,2]
[323055373,1713621117766,-341.22435283,0.00017534,2]
[323055374,1713621117776,-586.97,0.00017534,2]
[323055375,1713621117787,-599.69,0.00017534,2]
[323055376,1713621117798,-1031.32,0.00017534,2]
[323055377,1713621117808,-789.55,0.00017534,2]
[323055378,1713621117818,-1204.32,0.00017534,2]
[323055379,1713621117829,-500.0,0.00017534,2]
[323055380,1713621117840,-500.0,0.00017534,2]
[323055381,1713621117851,-500.0,0.00017534,2]
[323055382,1713621117861,-500.0,0.00017534,2]
[323055383,1713621117872,-702.73,0.00017534,2]
[323055384,1713621117882,-516.52,0.00017534,2]
[323055385,1713621117892,-3310.74,0.00017534,2]
[323055386,1713621117902,-500.0,0.00017534,2]
[323055387,1713621117913,-500.0,0.00017534,2]
[323055388,1713621117924,-500.0,0.00017534,2]
[323055389,1713621117934,-500.0,0.00017534,2]
[323055390,1713621117945,-2883.58,0.00017534,2]
[323055391,1713621117956,-1816.08,0.00017534,2]
[323055392,1713621117966,-585.36,0.00017534,2]
[323055393,1713621117977,-855.47,0.00017534,2]
[323055394,1713621117987,-534.99,0.00017534,2]
[323055395,1713621117998,-500.0,0.00017534,2]
[323055396,1713621118011,-25055.79,0.00017534,2]
[323055397,1713621118021,-1302.76,0.00017534,2]
[323055398,1713621118032,-2836.68,0.00017534,2]
[323055399,1713621118043,-11346.84,0.00017534,2]
[323055400,1713621118053,-1460.91,0.00017534,2]
[323055401,1713621118064,-604.68,0.00017534,2]
[323055402,1713621118075,-2104.73,0.00017534,2]
[323055403,1713621118085,-500.0,0.00017534,2]
[323055404,1713621118095,-500.0,0.00017534,2]
[323055405,1713621118106,-500.0,0.00017534,2]
[323055406,1713621118117,-500.0,0.00017534,2]
[323055407,1713621118127,-2073.42,0.00017534,2]
[323055408,1713621118137,-1526.62,0.00017534,2]
[323055409,1713621118148,-500.0,0.00017534,2]
[323055410,1713621118158,-294.39675307,0.00017534,2]
[323055411,1713621118168,-1538.77,0.00017534,2]
[323055412,1713621118178,-17543.18,0.00017534,2]
[323055413,1713621118188,-500.0,0.00017534,2]
[323055414,1713621118198,-500.0,0.00017534,2]
[323055415,1713621118208,-4660.49,0.00017534,2]
[323055416,1713621118218,-2699.08,0.00017534,2]
[323055417,1713621118229,-1491.91,0.00017534,2]
[323055418,1713621118240,-500.0,0.00017534,2]
[323055419,1713621118250,-1179.82,0.00017534,2]
[323055420,1713621118262,-1530.53,0.00017534,2]
[323055421,1713621118532,-581.88,0.00017534,2]
[323055422,1713621118542,-2419.34,0.00017534,2]
[323055423,1713621118553,-500.0,0.00017534,2]
[323055424,1713621118562,-1046.7,0.00017534,2]
[323055425,1713621118573,-929.27,0.00017534,2]
[323055426,1713621118583,-1397.79,0.00017534,2]
[323055427,1713621118593,-2207.26,0.00017534,2]
[323055428,1713621118602,-5291.84,0.00017534,2]
[323055429,1713621118612,-983.83,0.00017534,2]
[323055430,1713621118622,-584.35,0.00017534,2]
[323055431,1713621118632,-689.72,0.00017534,2]
[323055432,1713621118643,-2126.15,0.00017534,2]
[323055433,1713621118653,-2569.48,0.00017534,2]
[323055434,1713621118663,-3579.93,0.00017534,2]
[323055435,1713621118673,-873.88,0.00017534,2]
[323055436,1713621118683,-820.73,0.00017534,2]
[323055437,1713621118693,-500.0,0.00017534,2]
[323055438,1713621118703,-5218.13,0.00017534,2]
[323055439,1713621118713,-500.0,0.00017534,2]
[323055440,1713621118723,-500.0,0.00017534,2]
[323055441,1713621118734,-987.0,0.00017534,2]
[323055442,1713621118744,-20114.69,0.00017534,2]
[323055443,1713621118755,-893.57,0.00017534,2]
[323055444,1713621118765,-500.0,0.00017534,2]
[323055445,1713621118776,-637.43,0.00017534,2]
[323055446,1713621118785,-1731.18,0.00017534,2]
[323055447,1713621118797,-1285.12,0.00017534,2]
[323055448,1713621118807,-1109.59,0.00017534,2]
[323055449,1713621118817,-1096.27,0.00017534,2]
[323055450,1713621118827,-500.0,0.00017534,2]
[323055451,1713621118837,-725.21,0.00017534,2]
[323055452,1713621118847,-500.0,0.00017534,2]
[323055453,1713621118857,-1089.81,0.00017534,2]
[323055454,1713621118867,-508.71,0.00017534,2]
[323055455,1713621118877,-500.0,0.00017534,2]
[323055456,1713621118887,-500.0,0.00017534,2]
[323055457,1713621118898,-520.08,0.00017534,2]
[323055458,1713621118909,-1517.58,0.00017534,2]
[323055459,1713621118919,-500.0,0.00017534,2]
[323055460,1713621118929,-500.0,0.00017534,2]
[323055461,1713621118938,-1955.1,0.00017534,2]
[323055462,1713621118948,-500.0,0.00017534,2]
[323055463,1713621118959,-1531.19,0.00017534,2]
[323055464,1713621118969,-967.39,0.00017534,2]
[323055465,1713621118980,-620.62,0.00017534,2]
[323055466,1713621118990,-747.89,0.00017534,2]
[323055467,1713621118999,-7480.38,0.00017534,2]
[323055468,1713621119010,-1894.49,0.00017534,2]
[323055469,1713621119020,-873.58,0.00017534,2]
[323055470,1713621119030,-500.0,0.00017534,2]
[323055471,1713621119040,-1993.22,0.00017534,2]
[323055472,1713621119051,-880.45,0.00017534,2]
[323055473,1713621119060,-500.0,0.00017534,2]
[323055474,1713621119070,-500.0,0.00017534,2]
[323055475,1713621119079,-1085.31,0.00017534,2]
[323055476,1713621119089,-500.0,0.00017534,2]
[323055477,1713621119099,-500.0,0.00017534,2]
[323055478,1713621119110,-500.0,0.00017534,2]
[323055479,1713621119120,-2753.72,0.00017534,2]
[323055480,1713621119129,-1162.41,0.00017534,2]
[323055481,1713621119139,-2731.21,0.00017534,2]
[323055482,1713621119149,-500.0,0.00017534,2]
[323055483,1713621119159,-1954.97,0.00017534,2]
[323055484,1713621119169,-2627.79,0.00017534,2]
[323055485,1713621119178,-794.92,0.00017534,2]
[323055486,1713621119188,-1013.89,0.00017534,2]
[323055487,1713621119198,-322.21026527,0.00017534,2]
[323055488,1713621119207,-1131.55,0.00017534,2]
[323055489,1713621119216,-622.04,0.00017534,2]
[323055490,1713621119227,-1320.88,0.00017534,2]
[323055491,1713621119238,-500.0,0.00017534,2]
[323055492,1713621119249,-1413.35,0.00017534,2]
[323055493,1713621119261,-500.0,0.00017534,2]
[323055494,1713621119273,-500.0,0.00017534,2]
[323055495,1713621119284,-2346.4,0.00017534,2]
[323055496,1713621119294,-563.88,0.00017534,2]
[323055497,1713621119302,-803.26,0.00017534,2]
[323055498,1713621119312,-2292.01,0.00017534,2]
[323055499,1713621119320,-500.0,0.00017534,2]
[323055500,1713621119328,-831.92,0.00017534,2]
[323055501,1713621119335,-1128.04,0.00017534,2]
[323055502,1713621119342,-5369.64,0.00017534,2]
[323055503,1713621119351,-3431.1,0.00017534,2]
[323055504,1713621119361,-680.01,0.00017534,2]
[323055505,1713621119372,-546.08,0.00017534,2]
[323055506,1713621119382,-2676.86,0.00017534,2]
[323055507,1713621119392,-500.0,0.00017534,2]
[323055508,1713621119402,-727.28,0.00017534,2]
[323055509,1713621119412,-2216.75,0.00017534,2]
[323055510,1713621119421,-823.84,0.00017534,2]
[323055511,1713621119431,-500.0,0.00017534,2]
[323055512,1713621119441,-1588.82,0.00017534,2]
[323055513,1713621119451,-1811.35,0.00017534,2]
[323055514,1713621119460,-841.25,0.00017534,2]
[323055515,1713621119470,-500.0,0.00017534,2]
[323055516,1713621119479,-500.0,0.00017534,2]
[323055517,1713621119489,-906.35,0.00017534,2]
[323055518,1713621119498,-866.08,0.00017534,2]
[323055519,1713621119508,-1171.0,0.00017534,2]
[323055520,1713621119518,-3500.27,0.00017534,2]
[323055521,1713621119527,-4084.13,0.00017534,2]
[323055522,1713621119537,-506.37,0.00017534,2]
[323055523,1713621119547,-1349.52,0.00017534,2]
[323055524,1713621119557,-2730.13,0.00017534,2]
[323055525,1713621119567,-1215.96,0.00017534,2]
[323055526,1713621119577,-500.0,0.00017534,2]
[323055527,1713621119588,-545.47,0.00017534,2]
[323055528,1713621119599,-500.0,0.00017534,2]
[323055529,1713621119609,-500.0,0.00017534,2]
[323055530,1713621119619,-570.63,0.00017534,2]
[323055531,1713621119629,-1517.62,0.00017534,2]
[323055532,1713621119638,-500.0,0.00017534,2]
[323055533,1713621119648,-2492.62,0.00017534,2]
[323055534,1713621119658,-1694.66,0.00017534,2]
[323055535,1713621119668,-589.63,0.00017534,2]
[323055536,1713621119678,-1038.52,0.00017534,2]
[323055537,1713621119687,-500.0,0.00017534,2]
[323055538,1713621119697,-544.68,0.00017534,2]
[323055539,1713621119707,-745.95,0.00017534,2]
[323055540,1713621119717,-500.0,0.00017534,2]
[323055541,1713621119726,-2146.81,0.00017534,2]
[323055542,1713621119736,-500.0,0.00017534,2]
[323055543,1713621119746,-12863.04,0.00017534,2]
[323055544,1713621119756,-1580.69,0.00017534,2]
[323055545,1713621119765,-872.9,0.00017534,2]
[323055546,1713621119775,-500.0,0.00017534,2]
[323055547,1713621119784,-2481.94,0.00017534,2]
[323055548,1713621119794,-2416.85,0.00017534,2]
[323055549,1713621119803,-517.67,0.00017534,2]
[323055550,1713621119813,-716.61,0.00017534,2]
[323055551,1713621119823,-607.93,0.00017534,2]
[323055552,1713621119833,-500.0,0.00017534,2]
[323055553,1713621119842,-698.46,0.00017534,2]
[323055554,1713621119852,-1176.49,0.00017534,2]
[323055555,1713621119862,-1895.23,0.00017534,2]
[323055556,1713621119871,-2366.37,0.00017534,2]
[323055557,1713621119881,-834.84,0.00017534,2]
[323055558,1713621119891,-500.0,0.00017534,2]
[323055559,1713621119901,-500.0,0.00017534,2]
[323055560,1713621119910,-307.06212348,0.00017534,2]
[323055561,1713621119920,-1264.42,0.00017534,2]
[323055562,1713621119930,-500.0,0.00017534,2]
[323055563,1713621119939,-1200.1,0.00017534,2]
[323055564,1713621119949,-1525.57,0.00017534,2]
[323055565,1713621119959,-500.0,0.00017534,2]
[323055566,1713621119969,-2596.31,0.00017534,2]
[323055567,1713621119978,-3734.56,0.00017534,2]
[323055568,1713621119987,-735.18,0.00017534,2]
[323055569,1713621119997,-1983.17,0.00017534,2]
[323055570,1713621120008,-685.33,0.00017534,2]
[323055571,1713621120018,-1892.67,0.00017534,2]
[323055572,1713621120027,-794.67,0.00017534,2]
[323055573,1713621120036,-2762.86,0.00017534,2]
[323055574,1713621120046,-698.53,0.00017534,2]
[323055575,1713621120055,-500.0,0.00017534,2]
[323055576,1713621120065,-4314.41,0.00017534,2]
[323055577,1713621120075,-928.74,0.00017534,2]
[323055578,1713621120085,-704.33,0.00017534,2]
[323055579,1713621120094,-4750.03,0.00017534,2]
[323055580,1713621120105,-500.0,0.00017534,2]
[323055581,1713621120115,-556.39,0.00017534,2]
[323055582,1713621120125,-500.0,0.00017534,2]
[323055583,1713621120134,-6352.14,0.00017534,2]
[323055584,1713621120144,-554.92,0.00017534,2]
[323055585,1713621120154,-1612.53,0.00017534,2]
[323055586,1713621120165,-1230.53,0.00017534,2]
[323055587,1713621120175,-500.0,0.00017534,2]
[323055588,1713621120184,-1323.32,0.00017534,2]
[323055589,1713621120195,-5730.53,0.00017534,2]
[323055590,1713621120205,-3222.01,0.00017534,2]
[323055591,1713621120215,-1237.83,0.00017534,2]
[323055592,1713621120225,-801.29,0.00017534,2]
[323055593,1713621120235,-471.81179383,0.00017534,2]
[323055594,1713621120245,-500.0,0.00017534,2]
[323055595,1713621120256,-500.0,0.00017534,2]
[323055596,1713621120265,-8896.9,0.00017534,2]
[323055597,1713621120275,-1250.13,0.00017534,2]
[323055598,1713621120286,-21516.91,0.00017534,2]
[323055599,1713621120296,-1238.37,0.00017534,2]
[323055600,1713621120306,-618.25,0.00017534,2]
[323055601,1713621120316,-500.0,0.00017534,2]
[323055602,1713621120326,-1269.11,0.00017534,2]
[323055603,1713621120335,-622.79,0.00017534,2]
[323055604,1713621120345,-582.42,0.00017534,2]
[323055605,1713621120354,-500.0,0.00017534,2]
[323055606,1713621120364,-500.0,0.00017534,2]
[323055607,1713621120376,-1034.40538214,0.00017534,2]
[323055608,1713621120385,-740.0,0.00017535,2]
[323055609,1713621120395,-167.15,0.00017573,2]
[323055610,1713621120404,-1079.3946395,0.00017621,2]
[323055611,1713621120414,-6454.6557129,0.00017621,2]
[323055612,1713621120424,-895.767116,0.00017622,2]
[323055613,1713621120433,-11360.8048164,0.00017622,2]
[323055614,1713621120443,-61481.8681838,0.00017622,2]
[323055615,1713621120452,-6031.3172623,0.00017622,2]
[323055616,1713621120462,-32558.70784254,0.00017629,2]
[323055617,1713621120471,-32558.70784254,0.00017629,2]
[323055618,1713621120480,-322.80880317,0.00017629,2]
[323055619,1713621120489,-162.23845249,0.0001763,2]
[323055620,1713621120499,-384.1331973,0.0001763,2]
[323055621,1713621120509,-390.41373425,0.00017631,2]
[323055622,1713621120518,-1129.86438147,0.00017631,2]
[323055623,1713621120527,-322.80880317,0.00017631,2]
[323055624,1713621120537,-267.31419725,0.00017632,2]
[323055625,1713621120546,-267.31419725,0.00017632,2]
[323055626,1713621120556,-3821.6893512,0.00017632,2]
[323055627,1713621120565,-322.80880317,0.00017633,2]
[323055628,1713621120575,-178948.99790269,0.00017633,2]
[323055629,1713621120585,-32558.70784254,0.00017634,2]
[323055630,1713621120594,-312.03466031,0.00017634,2]
[323055631,1713621120603,-32558.70784254,0.00017634,2]
[323055632,1713621120613,-345.3055844,0.00017634,2]
[323055633,1713621120624,-5634.96145999,0.00017634,2]
[323055634,1713621120633,-1131.28301934,0.00017634,2]
[323055635,1713621120642,-1131.28301934,0.00017635,2]
[323055636,1713621120652,-6509.89280983,0.00017635,2]
[323055637,1713621120661,-3821.6893512,0.00017635,2]
[323055638,1713621120671,-3821.6893512,0.00017636,2]
[323055639,1713621120680,-345.3055844,0.00017636,2]
[323055640,1713621120690,-438.58853831,0.00017637,2]
[323055641,1713621120700,-10000.0,0.00017637,2]
[323055642,1713621120710,-6509.89280983,0.00017637,2]
[323055643,1713621120719,-244.14533383,0.00017638,2]
[323055644,1713621120729,-162.23845249,0.00017638,2]
[323055645,1713621120739,-1131.28301934,0.00017638,2]
[323055646,1713621120748,-345.3055844,0.00017638,2]
[323055647,1713621120759,-9418.83262516,0.00017638,2]
[323055648,1713621120769,-390.41373425,0.00017639,2]
[323055649,1713621120779,-322.80880317,0.0001764,2]
[323055650,1713621120789,-285.0,0.0001764,2]
[323055651,1713621120799,-244.14533383,0.0001764,2]
[323055652,1713621120809,-390.41373425,0.00017641,2]
[323055653,1713621120819,-438.58853831,0.00017641,2]
[323055654,1713621120829,-191.76457071,0.00017641,2]
[323055655,1713621120839,-178948.99790269,0.00017641,2]
[323055656,1713621120937,-312.03466031,0.00017641,2]
[323055657,1713621120947,-267.31419725,0.00017641,2]
[323055658,1713621120956,-3821.6893512,0.00017642,2]
[323055659,1713621120966,-1131.28301934,0.00017643,2]
[323055660,1713621120976,-1131.28301934,0.00017643,2]
[323055661,1713621120986,-191.76457071,0.00017643,2]
[323055662,1713621120996,-162.23845249,0.00017643,2]
[323055663,1713621121007,-438.58853831,0.00017644,2]
[323055664,1713621121017,-162.23845249,0.00017645,2]
[323055665,1713621121027,-3541.17535609,0.00017645,2]
[323055666,1713621121037,-384.1331973,0.00017646,2]
[323055667,1713621121047,-244.83060149,0.00017646,2]
[323055668,1713621121057,-267.31419725,0.00017646,2]
[323055669,1713621121066,-307.30655783,0.00017647,2]
[323055670,1713621121076,-546.97269817,0.00017647,2]
[323055671,1713621121086,-1129.86438147,0.00017648,2]
[323055672,1713621121095,-307.30655783,0.00017648,2]
[323055673,1713621121105,-546.97269817,0.00017648,2]
[323055674,1713621121115,-267.31419725,0.00017648,2]
[323055675,1713621121125,-162.23845249,0.00017649,2]
[323055676,1713621121135,-191.76457071,0.00017649,2]
[323055677,1713621121145,-312.03466031,0.00017649,2]
[323055678,1713621121155,-307.30655783,0.00017649,2]
[323055679,1713621121165,-384.1331973,0.00017649,2]
[323055680,1713621121175,-3541.17535609,0.0001765,2]
[323055681,1713621121184,-191.76457071,0.0001765,2]
[323055682,1713621121193,-267.31419725,0.0001765,2]
[323055683,1713621121202,-384.1331973,0.00017651,2]
[323055684,1713621121212,-322.80880317,0.00017651,2]
[323055685,1713621121222,-9418.83262516,0.00017651,2]
[323055686,1713621121231,-390.41373425,0.00017652,2]
[323055687,1713621121241,-9418.83262516,0.00017653,2]
[323055688,1713621121250,-322.80880317,0.00017653,2]
[323055689,1713621121261,-1129.86438147,0.00017653,2]
[323055690,1713621121271,-267.31419725,0.00017654,2]
[323055691,1713621121280,-384.1331973,0.00017654,2]
[323055692,1713621121290,-244.14533383,0.00017654,2]
[323055693,1713621121303,-6509.89280983,0.00017655,2]
[323055694,1713621121313,-191.76457071,0.00017655,2]
[323055695,1713621121322,-1129.86438147,0.00017656,2]
[323055696,1713621121332,-178948.99790269,0.00017656,2]
[323055697,1713621121342,-9418.83262516,0.00017656,2]
[323055698,1713621121351,-244.83060149,0.00017656,2]
[323055699,1713621121361,-312.03466031,0.00017656,2]
[323055700,1713621121371,-1129.86438147,0.00017659,2]
[323055701,1713621121381,-9418.83262516,0.00017659,2]
[323055702,1713621121391,-5634.96145999,0.00017659,2]
[323055703,1713621121401,-390.41373425,0.0001766,2]
[323055704,1713621121410,-5634.96145999,0.0001766,2]
[323055705,1713621121420,-438.58853831,0.0001766,2]
[323055706,1713621121429,-345.3055844,0.00017661,2]
[323055707,1713621121439,-3821.6893512,0.00017661,2]
[323055708,1713621121449,-3541.17535609,0.00017661,2]
[323055709,1713621121458,-438.58853831,0.00017662,2]
[323055710,1713621121468,-162.23845249,0.00017662,2]
[323055711,1713621121477,-345.3055844,0.00017662,2]
[323055712,1713621121487,-6893.10664375,0.00017662,2]
[323055713,1713621121497,-3821.6893512,0.00017663,2]
[323055714,1713621121507,-244.83060149,0.00017663,2]
[323055715,1713621121516,-244.83060149,0.00017663,2]
[323055716,1713621121525,-191.76457071,0.00017663,2]
[323055717,1713621121534,-312.03466031,0.00017663,2]
[323055718,1713621121543,-384.1331973,0.00017663,2]
[323055719,1713621121554,-5634.96145999,0.00017663,2]
[323055720,1713621121563,-1129.86438147,0.00017664,2]
[323055721,1713621121573,-546.97269817,0.00017664,2]
[323055722,1713621121583,-6893.10664375,0.00017665,2]
[323055723,1713621121592,-162.23845249,0.00017665,2]
[323055724,1713621121601,-244.83060149,0.00017665,2]
[323055725,1713621121611,-1131.28301934,0.00017665,2]
[323055726,1713621121621,-312.03466031,0.00017665,2]
[323055727,1713621121630,-3821.6893512,0.00017666,2]
[323055728,1713621121640,-178948.99790269,0.00017667,2]
[323055729,1713621121650,-1129.86438147,0.00017667,2]
[323055730,1713621121659,-3541.17535609,0.00017667,2]
[323055731,1713621121670,-244.83060149,0.00017669,2]
[323055732,1713621121680,-5634.96145999,0.00017669,2]
[323055733,1713621121690,-3541.17535609,0.00017669,2]
[323055734,1713621121699,-345.3055844,0.00017669,2]
[323055735,1713621121710,-3541.17535609,0.00017669,2]
[323055736,1713621121719,-267.31419725,0.0001767,2]
[323055737,1713621121729,-162.23845249,0.0001767,2]
[323055738,1713621121739,-267.31419725,0.0001767,2]
[323055739,1713621121749,-244.83060149,0.00017671,2]
[323055740,1713621121759,-6509.89280983,0.00017671,2]
[323055741,1713621121769,-307.30655783,0.00017671,2]
[323055742,1713621121779,-6509.89280983,0.00017671,2]
[323055743,1713621121788,-390.41373425,0.00017671,2]
[323055744,1713621121797,-1131.28301934,0.00017671,2]
[323055745,1713621121807,-307.30655783,0.00017672,2]
[323055746,1713621121816,-307.30655783,0.00017672,2]
[323055747,1713621121826,-3541.17535609,0.00017672,2]
[323055748,1713621121835,-244.14533383,0.00017672,2]
[323055749,1713621121845,-345.3055844,0.00017672,2]
[323055750,1713621121854,-6509.89280983,0.00017673,2]
[323055751,1713621121864,-1129.86438147,0.00017673,2]
[323055752,1713621121874,-191.76457071,0.00017674,2]
[323055753,1713621121883,-312.03466031,0.00017674,2]
[323055754,1713621121892,-384.1331973,0.00017674,2]
[323055755,1713621121902,-6893.10664375,0.00017674,2]
[323055756,1713621121911,-6893.10664375,0.00017674,2]
[323055757,1713621121921,-438.58853831,0.00017675,2]
[323055758,1713621121930,-1129.86438147,0.00017675,2]
[323055759,1713621121940,-9418.83262516,0.00017675,2]
[323055760,1713621121950,-546.97269817,0.00017675,2]
[323055761,1713621121959,-1131.28301934,0.00017676,2]
[323055762,1713621121969,-307.30655783,0.00017676,2]
[323055763,1713621121978,-390.41373425,0.00017676,2]
[323055764,1713621121987,-6893.10664375,0.00017677,2]
[323055765,1713621121996,-345.3055844,0.00017677,2]
[323055766,1713621122006,-6893.10664375,0.00017677,2]
[323055767,1713621122017,-3541.17535609,0.00017678,2]
[323055768,1713621122026,-3821.6893512,0.00017678,2]
[323055769,1713621122035,-244.83060149,0.00017678,2]
[323055770,1713621122045,-6893.10664375,0.0001768,2]
[323055771,1713621122054,-438.58853831,0.0001768,2]
[323055772,1713621122063,-546.97269817,0.0001768,2]
[323055773,1713621122072,-6893.10664375,0.00017681,2]
[323055774,1713621122082,-32558.70784254,0.00017681,2]
[323055775,1713621122091,-244.14533383,0.00017681,2]
[323055776,1713621122100,-5634.96145999,0.00017682,2]
[323055777,1713621122109,-32558.70784254,0.00017682,2]
[323055778,1713621122119,-438.58853831,0.00017682,2]
[323055779,1713621122128,-345.3055844,0.00017682,2]
[323055780,1713621122138,-32558.70784254,0.00017682,2]